[Event "FIDE World Senior-Women CC 2023"]
[Site "Terrasini"]
[Date "2023.10.26"]
[Round "2.5"]
[White "Ni, Polina"]
[Black "Strutinskaia, Galina"]
[Result "0-1"]
[ECO "B30"]
[WhiteElo "1866"]
[BlackElo "2114"]
[Annotator "NA RC"]
[PlyCount "76"]
[EventDate "2023.10.22"]
[EventType "swiss"]
[EventCountry "ITA"]
[SourceTitle "playchess.com"]
[Source "ChessBase"]
[SourceQuality "1"]
[TimeControl "40/5400+30:1800+30"]

1. e4 {[%emt 0:00:05]} c5 {[%emt 0:00:05]} 2. Nf3 {[%emt 0:00:03]} Nc6 {[%emt 0:00:05]} 3. Bb5 {[%emt 0:00:03]} e6 {[%emt 0:00:11]} 4. Bxc6 {[%emt 0:00:26]} bxc6 {[%emt 0:00:09]} 5. b3 {[%emt 0:01:48]} Ne7 {[%emt 0:01:11]} 6. O-O {[%emt 0:03:50]} Ng6 {[%emt 0:00:19]} 7. Bb2 {[%emt 0:03:36]} f6 {[%emt 0:02:12]} 8. c4 {[%emt 0:12:26]} Be7 {[%emt 0:03:23]} 9. Nc3 {[%emt 0:04:33]} O-O {[%emt 0:00:35]} 10. Ne2 {[%emt 0:05:30]} e5 {[%emt 0:04:01]} 11. h4 {[%emt 0:05:02]} d6 {[%emt 0:03:11]} 12. h5 {[%emt 0:02:37]} Nh8 {[%emt 0:00:43]} 13. Nh2 {[%emt 0:08:07]} f5 {[%emt 0:00:58]} 14. f4 {[%emt 0:06:25]} exf4 {[%emt 0:05:35]} 15. e5 {[%emt 0:05:31]} Nf7 {[%emt 0:04:34]} 16. Nf3 {[%emt 0:04:53]} Qc7 {[%emt 0:00:56]} 17. exd6 {[%emt 0:05:56]} Bxd6 {[%emt 0:01:05]} 18. d4 {[%emt 0:01:39]} Re8 {[%emt 0:01:23]} 19. Qd2 {[%emt 0:03:43]} a5 {[%emt 0:01:00]} 20. Rae1 {[%emt 0:06:20]} Bd7 {[%emt 0:01:15]} 21. dxc5 {[%emt 0:04:57]} Bxc5+ {[%emt 0:00:27]} 22. Bd4 {[%emt 0:01:29]} Bxd4+ {[%emt 0:02:48]} 23. Nfxd4 {[%emt 0:03:20]} Rad8 {[%emt 0:04:06]} 24. Qxf4 {[%emt 0:02:31]} Qa7 {[%emt 0:01:45]} 25. Nc3 {[%emt 0:04:27]} Nh6 {[%emt 0:03:56]} 26. Kh1 {[%emt 0:01:17]} Qc5 {[%emt 0:01:36]} 27. Nf3 {[%emt 0:02:45]} Ng4 {[%emt 0:01:37]} 28. Qd4 {[%emt 0:00:37]} Qf8 {[%emt 0:00:26]} 29. Rxe8 {[%emt 0:00:28]} Qxe8 {[%emt 0:00:16]} 30. Ng5 {[%emt 0:00:32]} Qxh5+ {[%emt 0:00:14]} 31. Nh3 {[%emt 0:00:20]} Qh4 {[%emt 0:02:48]} 32. Qf4 {[%emt 0:00:39]} Re8 {[%emt 0:00:32]} 33. a3 {[%emt 0:00:32]} h6 {[%emt 0:00:28]} 34. c5 {[%emt 0:00:29]} Re3 {[%emt 0:00:31]} 35. Rf3 {[%emt 0:00:33]} Qe1+ {[%emt 0:00:25]} 36. Rf1 {[%emt 0:00:30]} Qxc3 {[%emt 0:00:14]} 37. Qd6 {[%emt 0:00:29]} Qd3 {[%emt 0:01:58]} 38. Qxd3 {[%emt 0:00:28]} Rxd3 {[%emt 0:00:08]} 0-1

[Event "FIDE World Senior-Women CC 2023"]
[Site "Terrasini"]
[Date "2023.10.27"]
[Round "3.1"]
[White "Krasenkowa, Elena"]
[Black "Klinova, Masha"]
[Result "0-1"]
[ECO "A42"]
[WhiteElo "2089"]
[BlackElo "2249"]
[Annotator "ChessBase"]
[PlyCount "126"]
[EventDate "2023.10.22"]
[EventType "swiss"]
[EventCountry "ITA"]
[SourceTitle "playchess.com"]
[Source "ChessBase"]
[SourceQuality "1"]
[TimeControl "40/5400+30:1800+30"]

1. d4 {[%emt 0:00:01]} d6 {[%emt 0:00:09]} 2. Nf3 {[%emt 0:00:08]} g6 {[%emt 0:00:05]} 3. c4 {[%emt 0:00:10]} Bg7 {[%emt 0:00:05]} 4. Nc3 {[%emt 0:00:19]} Nc6 {[%emt 0:00:08]} 5. e4 {[%emt 0:01:31]} Bg4 {[%emt 0:04:01]} 6. Be3 {[%emt 0:00:28]} e5 {[%emt 0:01:04]} 7. dxe5 {[%emt 0:01:10]} dxe5 {[%emt 0:16:12]} 8. h3 {[%emt 0:07:24]} Bxf3 {[%emt 0:10:52]} 9. Qxf3 {[%emt 0:01:21]} Nd4 {[%emt 0:02:08]} 10. Qd1 {[%emt 0:00:21]} Nf6 {[%emt 0:03:24]} 11. Be2 {[%emt 0:01:13]} O-O {[%emt 0:01:09]} 12. O-O {[%emt 0:00:05]} c6 {[%emt 0:00:41]} 13. Re1 {[%emt 0:08:51]} Ne8 {[%emt 0:05:47]} 14. Rb1 {[%emt 0:03:37]} Nc7 {[%emt 0:02:46]} 15. b4 {[%emt 0:00:50]} Nce6 {[%emt 0:02:11]} 16. Bf1 {[%emt 0:04:12]} Qf6 {[%emt 0:06:01]} 17. b5 {[%emt 0:05:46]} Rfd8 {[%emt 0:00:26]} 18. Qc1 {[%emt 0:00:09]} Rd7 {[%emt 0:00:46]} 19. bxc6 {[%emt 0:04:30]} bxc6 {[%emt 0:00:11]} 20. a4 {[%emt 0:00:12]} a5 {[%emt 0:01:27]} 21. Rb6 {[%emt 0:01:16]} Bf8 {[%emt 0:02:45]} 22. Qb2 {[%emt 0:07:29]} Bb4 {[%emt 0:03:19]} 23. Rc1 {[%emt 0:00:47]} Qd8 {[%emt 0:02:59]} 24. Rxb4 {[%emt 0:09:14]} axb4 {[%emt 0:00:05]} 25. Qxb4 {[%emt 0:00:02]} Rb8 {[%emt 0:02:49]} 26. Qa3 {[%emt 0:00:14]} Qa5 {[%emt 0:00:37]} 27. Ne2 {[%emt 0:06:07]} Rb3 {[%emt 0:05:43]} 28. Qa2 {[%emt 0:00:08]} Qb4 {[%emt 0:04:05]} 29. Nxd4 {[%emt 0:04:47]} exd4 {[%emt 0:02:56]} 30. Bd2 {[%emt 0:00:10]} Rb2 {[%emt 0:02:36]} 31. Bxb4 {[%emt 0:00:19]} Rxa2 {[%emt 0:00:04]} 32. Rd1 {[%emt 0:05:05]} Rxa4 {[%emt 0:00:28]} 33. Bd2 {[%emt 0:00:07]} Kg7 {[%emt 0:01:30]} 34. f4 {[%emt 0:01:04]} Nc5 {[%emt 0:01:39]} 35. e5 {[%emt 0:02:49]} Rda7 {[%emt 0:02:23]} 36. f5 {[%emt 0:05:33]} gxf5 {[%emt 0:04:12]} 37. Bg5 {[%emt 0:00:25]} Ne4 {[%emt 0:01:20]} 38. Bf6+ {[%emt 0:03:33]} Nxf6 {[%emt 0:00:16]} 39. exf6+ {[%emt 0:00:03]} Kxf6 {[%emt 0:00:04]} 40. Rxd4 {[%emt 0:00:03]} Ke5 {[%emt 0:00:18]} 41. Rd2 {[%emt 0:30:19]} Ra1 {[%emt 0:30:18]} 42. Re2+ {[%emt 0:00:12]} Kf6 {[%emt 0:01:22]} 43. Rf2 {[%emt 0:02:27]} R7a2 {[%emt 0:03:44]} 44. Rf3 {[%emt 0:00:18]} Ra3 {[%emt 0:01:29]} 45. Rf2 {[%emt 0:00:36]} R1a2 {[%emt 0:00:00]} 46. Rf4 {[%emt 0:00:00]} Kg5 {[%emt 0:00:00]} 47. Rd4 {[%emt 0:00:00]} Re3 {[%emt 0:00:00]} 48. Rd1 {[%emt 0:00:00]} f4 {[%emt 0:00:00]} 49. Kh1 {[%emt 0:00:00]} h5 {[%emt 0:00:00]} 50. Kg1 {[%emt 0:00:00]} f3 {[%emt 0:00:00]} 51. gxf3 {[%emt 0:00:00]} Rxf3 {[%emt 0:00:00]} 52. Kh1 {[%emt 0:00:00]} Rfa3 {[%emt 0:00:00]} 53. Rd7 {[%emt 0:00:00]} f5 {[%emt 0:00:00]} 54. Bg2 {[%emt 0:00:00]} Rc3 {[%emt 0:00:00]} 55. Rd1 {[%emt 0:00:33]} Rxc4 {[%emt 0:00:00]} 56. Rg1 {[%emt 0:00:37]} Kh4 {[%emt 0:00:00]} 57. Rf1 {[%emt 0:00:57]} Rcc2 {[%emt 0:00:00]} 58. Bf3 {[%emt 0:00:36]} Rf2 {[%emt 0:00:14]} 59. Rxf2 {[%emt 0:00:06]} Rxf2 {[%emt 0:00:06]} 60. Bxc6 {[%emt 0:00:07]} Kxh3 {[%emt 0:00:30]} 61. Kg1 {[%emt 0:00:04]} Kg3 {[%emt 0:00:20]} 62. Bd5 {[%emt 0:01:45]} Rd2 {[%emt 0:00:14]} 63. Bb3 {[%emt 0:00:04]} Rb2 {[%emt 0:00:13]} 0-1

[Event "FIDE World Senior-Women CC 2023"]
[Site "Terrasini"]
[Date "2023.10.27"]
[Round "3.2"]
[White "Strutinskaia, Galina"]
[Black "Folkova, Martina"]
[Result "1-0"]
[ECO "A13"]
[WhiteElo "2114"]
[BlackElo "2022"]
[Annotator "NA"]
[PlyCount "77"]
[EventDate "2023.10.22"]
[EventType "swiss"]
[EventCountry "ITA"]
[SourceTitle "playchess.com"]
[Source "ChessBase"]
[SourceQuality "1"]
[TimeControl "40/5400+30:1800+30"]

1. c4 {[%emt 0:00:05]} e6 {[%emt 0:05:15]} 2. g3 {[%emt 0:00:08]} d5 {[%emt 0:00:15]} 3. Bg2 {[%emt 0:00:13]} dxc4 {[%emt 0:01:28]} 4. Qa4+ {[%emt 0:01:22]} Nd7 {[%emt 0:01:01]} 5. Qxc4 {[%emt 0:01:23]} c5 {[%emt 0:01:51]} 6. Nf3 {[%emt 0:01:00]} a6 {[%emt 0:01:25]} 7. Qc2 {[%emt 0:00:42]} Ngf6 {[%emt 0:02:34]} 8. O-O {[%emt 0:01:05]} g6 {[%emt 0:08:18]} 9. b3 {[%emt 0:08:15]} Bg7 {[%emt 0:02:19]} 10. Bb2 {[%emt 0:00:09]} O-O {[%emt 0:01:30]} 11. a4 {[%emt 0:00:50]} Re8 {[%emt 0:08:46]} 12. Na3 {[%emt 0:01:25]} e5 {[%emt 0:04:03]} 13. d3 {[%emt 0:06:20]} Qe7 {[%emt 0:08:26]} 14. Nd2 {[%emt 0:06:07]} h5 {[%emt 0:08:53]} 15. Nac4 {[%emt 0:04:26]} h4 {[%emt 0:01:07]} 16. Rfc1 {[%emt 0:04:28]} hxg3 {[%emt 0:04:20]} 17. hxg3 {[%emt 0:00:15]} Rb8 {[%emt 0:03:30]} 18. a5 {[%emt 0:00:10]} Bh6 {[%emt 0:04:22]} 19. e3 {[%emt 0:00:56]} Ng4 {[%emt 0:01:46]} 20. Ne4 {[%emt 0:04:02]} f5 {[%emt 0:00:46]} 21. Ned6 {[%emt 0:00:37]} Rf8 {[%emt 0:00:20]} 22. f4 {[%emt 0:02:14]} Kh7 {[%emt 0:07:27]} 23. Re1 {[%emt 0:01:10]} Bg7 {[%emt 0:04:57]} 24. Bf3 {[%emt 0:01:40]} Ndf6 {[%emt 0:04:59]} 25. Nxc8 {[%emt 0:00:53]} Rbxc8 {[%emt 0:00:15]} 26. Nxe5 {[%emt 0:02:48]} Rh8 {[%emt 0:02:41]} 27. Kg2 {[%emt 0:00:31]} Nxe5 {[%emt 0:03:27]} 28. Bxe5 {[%emt 0:00:24]} Nh5 {[%emt 0:01:15]} 29. Qc3 {[%emt 0:03:32]} Bxe5 {[%emt 0:04:59]} 30. Qxe5 {[%emt 0:00:10]} Qxe5 {[%emt 0:00:52]} 31. fxe5 {[%emt 0:01:08]} Rc7 {[%emt 0:00:14]} 32. Rac1 {[%emt 0:01:41]} Re8 {[%emt 0:00:54]} 33. d4 {[%emt 0:00:22]} Ree7 {[%emt 0:00:10]} 34. Rc4 {[%emt 0:00:34]} Ng7 {[%emt 0:01:18]} 35. Rh1+ {[%emt 0:00:44]} Kg8 {[%emt 0:00:05]} 36. Rhc1 {[%emt 0:00:21]} Kf8 {[%emt 0:01:33]} 37. b4 {[%emt 0:46:50]} Ne6 {[%emt 0:00:14]} 38. d5 {[%emt 0:00:00]} cxb4 {[%emt 0:00:16]} 39. d6 {[%emt 0:00:00]} 1-0

[Event "FIDE World Senior-Women CC 2023"]
[Site "Terrasini"]
[Date "2023.10.27"]
[Round "3.3"]
[White "Gaprindashvili, Nona"]
[Black "Milligan, Helen"]
[Result "1/2-1/2"]
[ECO "E73"]
[WhiteElo "2267"]
[BlackElo "1947"]
[Annotator "ChessBase"]
[PlyCount "96"]
[EventDate "2023.10.22"]
[EventType "swiss"]
[EventCountry "ITA"]
[SourceTitle "playchess.com"]
[Source "ChessBase"]
[SourceQuality "1"]
[TimeControl "40/5400+30:1800+30"]

1. d4 {[%emt 0:00:08]} Nf6 {[%emt 0:00:09]} 2. c4 {[%emt 0:00:08]} g6 {[%emt 0:00:08]} 3. Nc3 {[%emt 0:00:10]} Bg7 {[%emt 0:00:08]} 4. e4 {[%emt 0:00:10]} d6 {[%emt 0:00:08]} 5. Be2 {[%emt 0:00:13]} O-O {[%emt 0:00:22]} 6. Bg5 {[%emt 0:00:09]} Na6 {[%emt 0:00:57]} 7. Qd2 {[%emt 0:01:08]} e5 {[%emt 0:05:24]} 8. d5 {[%emt 0:00:11]} c6 {[%emt 0:00:23]} 9. f3 {[%emt 0:03:23]} cxd5 {[%emt 0:02:37]} 10. cxd5 {[%emt 0:01:11]} Bd7 {[%emt 0:01:40]} 11. Be3 {[%emt 0:03:24]} Nh5 {[%emt 0:05:33]} 12. O-O-O {[%emt 0:10:16]} Nf4 {[%emt 0:08:36]} 13. Bf1 {[%emt 0:00:48]} f5 {[%emt 0:08:44]} 14. Kb1 {[%emt 0:00:25]} Nc7 {[%emt 0:05:37]} 15. Nge2 {[%emt 0:04:35]} Nxe2 {[%emt 0:03:31]} 16. Bxe2 {[%emt 0:00:03]} f4 {[%emt 0:01:06]} 17. Bf2 {[%emt 0:00:09]} Bf6 {[%emt 0:03:57]} 18. Rhf1 {[%emt 0:04:46]} Qe8 {[%emt 0:02:32]} 19. Rc1 {[%emt 0:02:56]} Bd8 {[%emt 0:04:04]} 20. Bd3 {[%emt 0:03:43]} Nb5 {[%emt 0:06:14]} 21. Ne2 {[%emt 0:00:45]} a5 {[%emt 0:00:21]} 22. Rc2 {[%emt 0:00:36]} a4 {[%emt 0:01:49]} 23. Rfc1 {[%emt 0:01:02]} Ba5 {[%emt 0:01:28]} 24. Qd1 {[%emt 0:00:10]} Qd8 {[%emt 0:05:31]} 25. Qg1 {[%emt 0:00:49]} Kg7 {[%emt 0:05:34]} 26. Ka1 {[%emt 0:09:11]} Rf7 {[%emt 0:01:28]} 27. Rc4 {[%emt 0:06:13]} a3 {[%emt 0:06:50]} 28. b4 {[%emt 0:05:43]} Bc7 {[%emt 0:00:29]} 29. R4c2 {[%emt 0:16:36]} Be8 {[%emt 0:01:37]} 30. Rc4 {[%emt 0:03:40]} Ra6 {[%emt 0:02:34]} 31. R1c2 {[%emt 0:00:17]} Bb6 {[%emt 0:02:55]} 32. Rc8 {[%emt 0:01:00]} Bxf2 {[%emt 0:00:52]} 33. Rxd8 {[%emt 0:02:31]} Bxg1 {[%emt 0:00:05]} 34. Rxe8 {[%emt 0:00:06]} Nd4 {[%emt 0:01:36]} 35. Nxg1 {[%emt 0:05:06]} Nxc2+ {[%emt 0:00:07]} 36. Bxc2 {[%emt 0:00:07]} Rc7 {[%emt 0:00:55]} 37. Kb1 {[%emt 0:00:02]} Rb6 {[%emt 0:00:15]} 38. Ne2 {[%emt 0:00:37]} Rxb4+ {[%emt 0:00:17]} 39. Bb3 {[%emt 0:01:40]} Rxb3+ {[%emt 0:04:50]} 40. axb3 {[%emt 0:00:02]} a2+ {[%emt 0:00:18]} 41. Ka1 {[%emt 0:31:01]} Rc2 {[%emt 0:30:25]} 42. Nxf4 {[%emt 0:00:54]} exf4 {[%emt 0:00:06]} 43. Re6 {[%emt 0:00:17]} Rxg2 {[%emt 0:02:15]} 44. Rxd6 {[%emt 0:00:03]} g5 {[%emt 0:00:41]} 45. h3 {[%emt 0:05:59]} h5 {[%emt 0:01:46]} 46. Rd7+ {[%emt 0:00:00]} Kg6 {[%emt 0:00:00]} 47. Rd6+ {[%emt 0:00:00]} Kg7 {[%emt 0:00:00]} 48. Rd7+ {[%emt 0:00:00]} Kg6 {[%emt 0:00:00]} 1/2-1/2

[Event "FIDE World Senior-Women CC 2023"]
[Site "Terrasini"]
[Date "2023.10.27"]
[Round "3.4"]
[White "Khropova, Larisa"]
[Black "Mikhaylova, Irina"]
[Result "1/2-1/2"]
[ECO "B38"]
[WhiteElo "2054"]
[BlackElo "2216"]
[Annotator "ChessBase"]
[PlyCount "103"]
[EventDate "2023.10.22"]
[EventType "swiss"]
[EventCountry "ITA"]
[SourceTitle "playchess.com"]
[Source "ChessBase"]
[SourceQuality "1"]
[TimeControl "40/5400+30:1800+30"]

1. Nf3 {[%emt 0:00:12]} Nf6 {[%emt 0:08:33]} 2. c4 {[%emt 0:00:40]} c5 {[%emt 0:01:05]} 3. Nc3 {[%emt 0:01:07]} g6 {[%emt 0:04:17]} 4. e4 {[%emt 0:04:40]} Bg7 {[%emt 0:04:33]} 5. d4 {[%emt 0:01:25]} cxd4 {[%emt 0:00:38]} 6. Nxd4 {[%emt 0:00:09]} d6 {[%emt 0:04:38]} 7. Be2 {[%emt 0:03:03]} Nc6 {[%emt 0:00:14]} 8. Be3 {[%emt 0:02:24]} O-O {[%emt 0:01:49]} 9. O-O {[%emt 0:00:23]} a6 {[%emt 0:10:49]} 10. h3 {[%emt 0:05:03]} Nxd4 {[%emt 0:06:09]} 11. Bxd4 {[%emt 0:04:42]} Be6 {[%emt 0:00:05]} 12. Qd2 {[%emt 0:05:54]} Qa5 {[%emt 0:02:35]} 13. Rfd1 {[%emt 0:04:54]} Rfc8 {[%emt 0:00:24]} 14. b3 {[%emt 0:01:03]} b5 {[%emt 0:04:15]} 15. cxb5 {[%emt 0:06:11]} axb5 {[%emt 0:00:10]} 16. f3 {[%emt 0:02:51]} b4 {[%emt 0:06:00]} 17. Na4 {[%emt 0:01:22]} Nd7 {[%emt 0:00:37]} 18. Rac1 {[%emt 0:04:55]} Bxd4+ {[%emt 0:04:31]} 19. Qxd4 {[%emt 0:00:09]} Rxc1 {[%emt 0:00:35]} 20. Rxc1 {[%emt 0:00:09]} Qg5 {[%emt 0:03:25]} 21. Rc2 {[%emt 0:05:34]} Bxh3 {[%emt 0:00:16]} 22. Bf1 {[%emt 0:01:09]} Be6 {[%emt 0:01:35]} 23. Qxb4 {[%emt 0:10:41]} Qe3+ {[%emt 0:00:21]} 24. Kh1 {[%emt 0:00:25]} Nf6 {[%emt 0:06:40]} 25. Qd2 {[%emt 0:02:27]} Qa7 {[%emt 0:00:07]} 26. Qf2 {[%emt 0:05:38]} Qa5 {[%emt 0:00:11]} 27. Qd2 {[%emt 0:00:32]} Qe5 {[%emt 0:04:04]} 28. Kg1 {[%emt 0:06:31]} d5 {[%emt 0:09:16]} 29. Nb6 {[%emt 0:03:02]} Rb8 {[%emt 0:02:18]} 30. Nxd5 {[%emt 0:01:18]} Bxd5 {[%emt 0:00:13]} 31. exd5 {[%emt 0:00:32]} Nxd5 {[%emt 0:00:08]} 32. Bc4 {[%emt 0:05:08]} Nb4 {[%emt 0:03:15]} 33. Rb2 {[%emt 0:01:47]} Nc6 {[%emt 0:01:40]} 34. Qe2 {[%emt 0:00:43]} Qd4+ {[%emt 0:00:23]} 35. Qf2 {[%emt 0:00:19]} Qd1+ {[%emt 0:00:38]} 36. Qf1 {[%emt 0:00:13]} Qd6 {[%emt 0:02:59]} 37. Qf2 {[%emt 0:00:29]} Rd8 {[%emt 0:02:38]} 38. a4 {[%emt 0:02:22]} Qf4 {[%emt 0:02:42]} 39. g3 {[%emt 0:00:52]} Qc1+ {[%emt 0:00:57]} 40. Kg2 {[%emt 0:00:06]} Ne5 {[%emt 0:01:01]} 41. Rc2 {[%emt 0:31:50]} Qd1 {[%emt 0:31:34]} 42. Qe2 {[%emt 0:01:37]} Nxc4 {[%emt 0:02:07]} 43. bxc4 {[%emt 0:00:34]} Qxe2+ {[%emt 0:00:00]} 44. Rxe2 {[%emt 0:00:00]} Ra8 {[%emt 0:00:00]} 45. Ra2 {[%emt 0:00:00]} Rc8 {[%emt 0:00:00]} 46. a5 {[%emt 0:00:00]} Rxc4 {[%emt 0:00:00]} 47. a6 {[%emt 0:00:00]} Rc8 {[%emt 0:00:00]} 48. a7 {[%emt 0:00:00]} Ra8 {[%emt 0:00:00]} 49. f4 {[%emt 0:00:00]} Kf8 {[%emt 0:00:00]} 50. g4 {[%emt 0:00:00]} Ke8 {[%emt 0:00:00]} 51. g5 {[%emt 0:00:00]} f6 {[%emt 0:00:00]} 52. Kf3 {[%emt 0:00:00]} 1/2-1/2

[Event "FIDE World Senior-Women CC 2023"]
[Site "Terrasini"]
[Date "2023.10.27"]
[Round "3.5"]
[White "Wagner-Michel, Annett"]
[Black "Burchardt, Brigitte"]
[Result "1/2-1/2"]
[ECO "C50"]
[WhiteElo "2033"]
[BlackElo "2124"]
[Annotator "NA RC"]
[PlyCount "20"]
[EventDate "2023.10.22"]
[EventType "swiss"]
[EventCountry "ITA"]
[SourceTitle "playchess.com"]
[Source "ChessBase"]
[SourceQuality "1"]
[TimeControl "40/5400+30:1800+30"]

1. e4 {[%emt 0:00:05]} e5 {[%emt 0:00:07]} 2. Nf3 {[%emt 0:00:14]} Nc6 {[%emt 0:00:29]} 3. Bc4 {[%emt 0:00:32]} Bc5 {[%emt 0:00:49]} 4. d3 {[%emt 0:01:12]} h6 {[%emt 0:02:03]} 5. O-O {[%emt 0:02:22]} d6 {[%emt 0:00:49]} 6. h3 {[%emt 0:00:56]} Nf6 {[%emt 0:00:52]} 7. Nc3 {[%emt 0:01:19]} O-O {[%emt 0:01:05]} 8. a3 {[%emt 0:01:19]} a6 {[%emt 0:01:08]} 9. Qe2 {[%emt 0:02:14]} Qe7 {[%emt 0:02:37]} 10. Be3 {[%emt 0:01:18]} Bxe3 {[%emt 0:01:51]} 1/2-1/2

[Event "FIDE World Senior-Women CC 2023"]
[Site "Terrasini"]
[Date "2023.10.28"]
[Round "4.1"]
[White "Klinova, Masha"]
[Black "Strutinskaia, Galina"]
[Result "1/2-1/2"]
[ECO "B51"]
[WhiteElo "2249"]
[BlackElo "2114"]
[Annotator "ChessBase"]
[PlyCount "116"]
[EventDate "2023.10.22"]
[EventType "swiss"]
[EventCountry "ITA"]
[SourceTitle "playchess.com"]
[Source "ChessBase"]
[SourceQuality "1"]
[TimeControl "40/5400+30:1800+30"]

1. e4 {[%emt 0:00:04]} c5 {[%emt 0:00:07]} 2. Nf3 {[%emt 0:00:05]} Nc6 {[%emt 0:00:08]} 3. Bb5 {[%emt 0:00:05]} d6 {[%emt 0:00:06]} 4. Bxc6+ {[%emt 0:00:35]} bxc6 {[%emt 0:00:06]} 5. O-O {[%emt 0:02:06]} e5 {[%emt 0:00:37]} 6. c3 {[%emt 0:01:47]} Bg4 {[%emt 0:01:02]} 7. h3 {[%emt 0:02:30]} Bxf3 {[%emt 0:03:41]} 8. Qxf3 {[%emt 0:00:17]} Be7 {[%emt 0:00:31]} 9. Rd1 {[%emt 0:03:22]} Bf6 {[%emt 0:00:17]} 10. d3 {[%emt 0:05:58]} Rb8 {[%emt 0:01:23]} 11. Nd2 {[%emt 0:02:21]} Ne7 {[%emt 0:01:03]} 12. Nf1 {[%emt 0:01:56]} Ng6 {[%emt 0:02:12]} 13. b3 {[%emt 0:00:57]} O-O {[%emt 0:00:24]} 14. Ng3 {[%emt 0:02:24]} Rb7 {[%emt 0:03:49]} 15. Be3 {[%emt 0:08:08]} Bg5 {[%emt 0:06:37]} 16. d4 {[%emt 0:01:37]} cxd4 {[%emt 0:01:52]} 17. cxd4 {[%emt 0:00:06]} h6 {[%emt 0:02:36]} 18. Rac1 {[%emt 0:12:55]} exd4 {[%emt 0:06:16]} 19. Rxd4 {[%emt 0:06:39]} Qa5 {[%emt 0:04:21]} 20. Bxg5 {[%emt 0:05:04]} hxg5 {[%emt 0:00:57]} 21. Qe2 {[%emt 0:01:55]} d5 {[%emt 0:02:59]} 22. Qd2 {[%emt 0:05:21]} Qb6 {[%emt 0:01:36]} 23. exd5 {[%emt 0:00:43]} cxd5 {[%emt 0:00:10]} 24. Rxd5 {[%emt 0:00:40]} f6 {[%emt 0:00:11]} 25. Rd7 {[%emt 0:04:21]} Nf4 {[%emt 0:01:00]} 26. Rd6 {[%emt 0:05:53]} Qb5 {[%emt 0:00:55]} 27. Rd8 {[%emt 0:02:04]} Rxd8 {[%emt 0:05:05]} 28. Qxd8+ {[%emt 0:00:05]} Kh7 {[%emt 0:00:03]} 29. Qd4 {[%emt 0:09:46]} Re7 {[%emt 0:00:58]} 30. Qc4 {[%emt 0:01:24]} Qe5 {[%emt 0:03:55]} 31. Qc2+ {[%emt 0:01:38]} g6 {[%emt 0:00:26]} 32. Rd1 {[%emt 0:02:31]} Rc7 {[%emt 0:04:08]} 33. Qe4 {[%emt 0:00:55]} Qc5 {[%emt 0:01:01]} 34. Qe8 {[%emt 0:01:32]} Qe7 {[%emt 0:04:23]} 35. Qxe7+ {[%emt 0:00:58]} Rxe7 {[%emt 0:00:02]} 36. f3 {[%emt 0:01:22]} f5 {[%emt 0:00:34]} 37. Kf2 {[%emt 0:00:52]} a5 {[%emt 0:00:32]} 38. Rd2 {[%emt 0:00:23]} Ra7 {[%emt 0:02:07]} 39. Ne2 {[%emt 0:00:36]} a4 {[%emt 0:01:06]} 40. Nxf4 {[%emt 0:01:19]} gxf4 {[%emt 0:00:08]} 41. Ke2 {[%emt 0:30:31]} a3 {[%emt 0:35:30]} 42. Kd3 {[%emt 0:00:34]} Rc7 {[%emt 0:00:44]} 43. b4 {[%emt 0:04:10]} Rc1 {[%emt 0:00:46]} 44. Rc2 {[%emt 0:00:00]} Rb1 {[%emt 0:00:00]} 45. Kc4 {[%emt 0:00:00]} Rb2 {[%emt 0:00:00]} 46. Kc3 {[%emt 0:00:00]} Rb1 {[%emt 0:00:00]} 47. Rd2 {[%emt 0:00:00]} Kh6 {[%emt 0:00:00]} 48. Rd3 {[%emt 0:00:00]} Rb2 {[%emt 0:00:00]} 49. Kc4 {[%emt 0:00:00]} Rxa2 {[%emt 0:00:00]} 50. Kb3 {[%emt 0:00:00]} Rxg2 {[%emt 0:00:00]} 51. Kxa3 {[%emt 0:00:00]} Rh2 {[%emt 0:00:00]} 52. b5 {[%emt 0:00:00]} Rxh3 {[%emt 0:00:00]} 53. b6 {[%emt 0:00:00]} Kg5 {[%emt 0:00:00]} 54. Kb4 {[%emt 0:00:00]} Rh8 {[%emt 0:00:00]} 55. Rd6 {[%emt 0:00:00]} Rg8 {[%emt 0:00:00]} 56. Kc5 {[%emt 0:00:00]} Kh4 {[%emt 0:00:00]} 57. b7 {[%emt 0:00:00]} Rb8 {[%emt 0:00:00]} 58. Kc6 {[%emt 0:00:00]} g5 {[%emt 0:00:00]} 1/2-1/2

[Event "FIDE World Senior-Women CC 2023"]
[Site "Terrasini"]
[Date "2023.10.28"]
[Round "4.2"]
[White "Bogumil, Tatiana"]
[Black "Gaprindashvili, Nona"]
[Result "1/2-1/2"]
[ECO "B06"]
[WhiteElo "2080"]
[BlackElo "2267"]
[Annotator "ChessBase"]
[PlyCount "103"]
[EventDate "2023.10.22"]
[EventType "swiss"]
[EventCountry "ITA"]
[SourceTitle "playchess.com"]
[Source "ChessBase"]
[SourceQuality "1"]
[TimeControl "40/5400+30:1800+30"]

1. e4 {[%emt 0:00:08]} g6 {[%emt 0:00:18]} 2. d4 {[%emt 0:01:12]} c6 {[%emt 0:00:08]} 3. Be3 {[%emt 0:05:15]} d5 {[%emt 0:00:34]} 4. e5 {[%emt 0:02:28]} Nh6 {[%emt 0:02:51]} 5. h4 {[%emt 0:06:11]} Nf5 {[%emt 0:02:27]} 6. h5 {[%emt 0:00:26]} Nxe3 {[%emt 0:01:13]} 7. fxe3 {[%emt 0:00:08]} Bh6 {[%emt 0:06:46]} 8. Qf3 {[%emt 0:14:17]} Bf5 {[%emt 0:05:28]} 9. Bd3 {[%emt 0:03:57]} Qd7 {[%emt 0:00:23]} 10. hxg6 {[%emt 0:01:06]} hxg6 {[%emt 0:00:29]} 11. Bxf5 {[%emt 0:00:22]} Qxf5 {[%emt 0:00:19]} 12. Qxf5 {[%emt 0:02:12]} gxf5 {[%emt 0:00:04]} 13. Rh3 {[%emt 0:04:10]} Nd7 {[%emt 0:00:37]} 14. Nd2 {[%emt 0:05:23]} e6 {[%emt 0:01:08]} 15. Ne2 {[%emt 0:00:51]} Ke7 {[%emt 0:00:25]} 16. Kf2 {[%emt 0:02:23]} f6 {[%emt 0:13:16]} 17. Rah1 {[%emt 0:00:39]} Bg7 {[%emt 0:00:03]} 18. Rxh8 {[%emt 0:02:33]} Rxh8 {[%emt 0:00:03]} 19. Rxh8 {[%emt 0:00:07]} Bxh8 {[%emt 0:00:07]} 20. exf6+ {[%emt 0:01:09]} Nxf6 {[%emt 0:02:26]} 21. Nf4 {[%emt 0:02:09]} Ng4+ {[%emt 0:00:47]} 22. Kf3 {[%emt 0:05:31]} Kd6 {[%emt 0:04:54]} 23. Ng6 {[%emt 0:06:52]} Bg7 {[%emt 0:00:20]} 24. c4 {[%emt 0:02:59]} Bh6 {[%emt 0:08:19]} 25. c5+ {[%emt 0:05:12]} Kd7 {[%emt 0:49:35]} 26. Nf1 {[%emt 0:03:20]} Kc7 {[%emt 0:00:00]} 27. b4 {[%emt 0:01:34]} b6 {[%emt 0:00:00]} 28. Ke2 {[%emt 0:05:16]} bxc5 {[%emt 0:00:00]} 29. bxc5 {[%emt 0:00:09]} Kb7 {[%emt 0:00:00]} 30. Ne7 {[%emt 0:00:38]} Bg5 {[%emt 0:00:00]} 31. Ng6 {[%emt 0:00:17]} Ka6 {[%emt 0:00:00]} 32. Nf8 {[%emt 0:03:22]} e5 {[%emt 0:00:00]} 33. Ne6 {[%emt 0:04:19]} Bf6 {[%emt 0:00:00]} 34. Ng3 {[%emt 0:00:29]} Nxe3 {[%emt 0:00:00]} 35. Kxe3 {[%emt 0:01:22]} f4+ {[%emt 0:00:00]} 36. Nxf4 {[%emt 0:00:05]} exf4+ {[%emt 0:00:00]} 37. Kxf4 {[%emt 0:00:19]} Bxd4 {[%emt 0:00:00]} 38. Nf5 {[%emt 0:02:00]} Bxc5 {[%emt 0:00:00]} 39. g4 {[%emt 0:01:19]} Kb5 {[%emt 0:00:00]} 40. g5 {[%emt 0:01:16]} Kc4 {[%emt 0:00:00]} 41. g6 {[%emt 0:31:49]} Bf8 {[%emt 0:15:38]} 42. Ke3 {[%emt 0:03:02]} Kc3 {[%emt 0:00:32]} 43. Ke2 {[%emt 0:00:13]} d4 {[%emt 0:03:15]} 44. Kd1 {[%emt 0:00:27]} c5 {[%emt 0:00:14]} 45. g7 {[%emt 0:00:19]} Bxg7 {[%emt 0:00:03]} 46. Nxg7 {[%emt 0:00:02]} Kb2 {[%emt 0:05:03]} 47. Ne6 {[%emt 0:00:09]} c4 {[%emt 0:01:17]} 48. Nxd4 {[%emt 0:00:10]} c3 {[%emt 0:03:08]} 49. a4 {[%emt 0:00:16]} a5 {[%emt 0:00:01]} 50. Nc2 {[%emt 0:00:32]} Kb3 {[%emt 0:00:48]} 51. Nd4+ {[%emt 0:00:12]} Kxa4 {[%emt 0:02:23]} 52. Kc2 {[%emt 0:00:16]} 1/2-1/2